fUSD/lending_fUSD_20240218
["ID","MTS","AMOUNT","RATE_DAILY","PERIOD"]
[314406980,1708297838661,-519.51940541,0.00035616,2]
[314406981,1708297838670,-525.2912807,0.00035616,2]
[314406982,1708297838679,-161.82549407,0.00035616,2]
[314406983,1708297838688,-500.0,0.00035616,2]
[314406984,1708297838697,-575.2,0.00035616,2]
[314406985,1708297838707,-575.2,0.00035616,2]
[314406986,1708297838715,-575.2,0.00035616,2]
[314406987,1708297838724,-575.2,0.00035616,2]
[314406988,1708297838733,-500.0,0.00035616,2]
[314406989,1708297838743,-500.0,0.00035616,2]
[314406990,1708297838752,-531.29852366,0.00035616,2]
[314406991,1708297838762,-563.62344063,0.00035616,2]
[314406992,1708297838772,-500.0,0.00035616,2]
[314406993,1708297838781,-500.0,0.00035616,2]
[314406994,1708297838790,-500.0,0.00035616,2]
[314406995,1708297838800,-500.0,0.00035616,2]
[314406996,1708297838810,-500.0,0.00035616,2]
[314406997,1708297838820,-535.98551507,0.00035616,2]
[314406998,1708297838832,-500.0,0.00035616,2]
[314406999,1708297838841,-500.0,0.00035616,2]
[314407000,1708297838851,-500.0,0.00035616,2]
[314407001,1708297838861,-500.0,0.00035616,2]
[314407002,1708297838870,-500.0,0.00035616,2]
[314407003,1708297838879,-488.77,0.00035616,2]
[314407004,1708297838888,-500.0,0.00035616,2]
[314407005,1708297838897,-500.0,0.00035616,2]
[314407006,1708297838907,-260.78148953,0.00035616,2]
[314407007,1708297838917,-500.0,0.00035616,2]
[314407008,1708297838926,-624.49,0.00035616,2]
[314407009,1708297838935,-624.49,0.00035616,2]
[314407010,1708297838944,-624.49,0.00035616,2]
[314407011,1708297838953,-258.40036997,0.00035616,2]
[314407012,1708297838963,-500.0,0.00035616,2]
[314407013,1708297838972,-266.39,0.00035616,2]
[314407014,1708297838981,-500.0,0.00035616,2]
[314407015,1708297838990,-500.0,0.00035616,2]
[314407016,1708297839000,-500.0,0.00035616,2]
[314407017,1708297839009,-500.0,0.00035616,2]
[314407018,1708297839018,-529.20734104,0.00035616,2]
[314407019,1708297839027,-977.4,0.00035616,2]
[314407020,1708297839037,-977.4,0.00035616,2]
[314407021,1708297839046,-977.4,0.00035616,2]
[314407022,1708297839057,-977.4,0.00035616,2]
[314407023,1708297839066,-500.0,0.00035616,2]
[314407024,1708297839075,-500.0,0.00035616,2]
[314407025,1708297839085,-626.47030215,0.00035616,2]
[314407026,1708297839095,-500.0,0.00035616,2]
[314407027,1708297839104,-500.0,0.00035616,2]
[314407028,1708297839114,-500.0,0.00035616,2]
[314407029,1708297839123,-500.0,0.00035616,2]
[314407030,1708297839132,-608.1381796,0.00035616,2]
[314407031,1708297839141,-500.0,0.00035616,2]
[314407032,1708297839150,-500.0,0.00035616,2]
[314407033,1708297839159,-500.0,0.00035616,2]
[314407034,1708297839168,-158.3,0.00035654,2]
[314407035,1708297839179,-158.77110127,0.00035727,2]
[314407036,1708297839190,-184.05,0.00035774,2]
[314407037,1708297839200,-762.18,0.00035798,2]
[314407038,1708297839210,-184.05,0.00035954,2]
[314407039,1708297839219,-184.05,0.00036134,2]
[314407040,1708297839230,-666.47,0.00036185,2]
[314407041,1708297839241,-155.88,0.00036187,2]
[314407042,1708297839260,-184.05,0.00036313,2]
[314407043,1708297839272,-1689.51734807,0.00036353,2]
[314407044,1708297839282,-500.0,0.00036388,2]
[314407045,1708297839291,-2516.01197189,0.00036389,2]
[314407046,1708297839303,-2516.01197188,0.00036389,2]
[314407048,1708297839313,-2516.01197188,0.00036389,2]
[314407049,1708297839322,-2516.01197188,0.00036389,2]
[314407050,1708297839332,-2516.01197188,0.00036389,2]
[314407051,1708297839341,-2516.01197188,0.00036389,2]
[314407052,1708297839351,-2516.01197188,0.00036389,2]
[314407053,1708297839360,-184.05,0.00036493,2]
[314407054,1708297839371,-152.7176105,0.00036539,2]
[314407055,1708297839382,-150.0,0.00036652,2]
[314407056,1708297839391,-4100.0,0.00036666,2]
[314407057,1708297839401,-19859.0,0.00036666,2]
[314407058,1708297839411,-433.069,0.00036666,2]
[314407059,1708297839420,-1033.069,0.00036666,2]
[314407060,1708297839430,-184.05,0.00036673,2]
[314407061,1708297839439,-1519.33597547,0.00036798,2]
[314407062,1708297839449,-1519.33597542,0.00036798,2]
[314407063,1708297839458,-1519.33597542,0.00036798,2]
[314407064,1708297839467,-1519.33597542,0.00036798,2]
[314407065,1708297839477,-1519.33597542,0.00036798,2]
[314407066,1708297839487,-1519.33597542,0.00036798,2]
[314407067,1708297839496,-1519.33597542,0.00036798,2]
[314407068,1708297839506,-214.27716326,0.00036818,9]
[314407069,1708297839515,-184.05,0.00036853,2]
[314407070,1708297839524,-500.0,0.00036916,2]
[314407071,1708297839534,-553.21,0.00036917,2]
[314407072,1708297839543,-553.21,0.00036917,2]
[314407073,1708297839553,-575.2,0.00036917,2]
[314407074,1708297839562,-575.2,0.00036917,2]
[314407075,1708297839572,-624.49,0.00036917,2]
[314407076,1708297839582,-624.49,0.00036917,2]
[314407077,1708297839591,-500.0,0.00036917,2]
[314407078,1708297839600,-500.0,0.00036917,2]
[314407079,1708297839610,-977.4,0.00036917,2]
[314407080,1708297839619,-977.4,0.00036917,2]
[314407081,1708297839628,-500.0,0.00036917,2]
[314407082,1708297839637,-211.13900055,0.00036917,2]
[314407083,1708297839647,-245000.0,0.00036918,2]
[314407084,1708297839656,-100000.0,0.00036918,2]
[314407085,1708297839665,-361.8273,0.00036918,2]
[314407086,1708297839675,-1000.0,0.00036918,2]
[314407087,1708297839686,-2360.3652,0.00036936,2]
[314407088,1708297839695,-500.0,0.00036937,2]
[314407089,1708297839705,-150.0,0.00036986,2]
[314407090,1708297839715,-150.0,0.00036986,7]
[314407091,1708297839726,-9785.19,0.00037,2]
[314407092,1708297839736,-151.0,0.00037015,4]
[314407093,1708297839746,-5512.9436,0.00037019,2]
[314407094,1708297839756,-184.05,0.00037033,2]
[314407095,1708297839766,-553.21,0.00037036,2]
[314407096,1708297839775,-575.2,0.00037036,2]
[314407097,1708297839785,-624.49,0.00037036,2]
[314407098,1708297839795,-500.0,0.00037036,2]
[314407099,1708297839805,-977.4,0.00037036,2]
[314407100,1708297839814,-762.18,0.00037075,2]
[314407101,1708297839825,-2516.01197188,0.00037173,2]
[314407102,1708297839835,-1519.33597542,0.00037173,2]
[314407103,1708297839844,-184.05,0.00037212,2]
[314407104,1708297839854,-7601.96241023,0.0003722,2]
[314407105,1708297839863,-2253.28516,0.0003722,2]
[314407106,1708297839874,-150.0,0.0003734,2]
[314407107,1708297839883,-184.05,0.00037392,2]
[314407108,1708297839893,-154.0,0.00037408,7]
[314407109,1708297839903,-150.0,0.0003742,2]
[314407110,1708297839913,-166.17,0.00037429,2]
[314407111,1708297839923,-4668.15327792,0.00037481,2]
[314407112,1708297839932,-438.05899662,0.00037486,2]
[314407113,1708297839942,-245.4,0.00037486,2]
[314407114,1708297839951,-553.21,0.00037496,2]
[314407115,1708297839961,-575.2,0.00037496,2]
[314407116,1708297839973,-977.4,0.00037496,2]
[314407117,1708297839983,-173.021934,0.00037498,30]
[314407118,1708297839993,-173.021934,0.00037498,30]
[314407119,1708297840003,-173.021934,0.00037498,29]
[314407120,1708297840012,-181.021934,0.00037498,31]
[314407121,1708297840022,-181.021934,0.00037498,31]
[314407122,1708297840031,-4381.34995115,0.000375,5]
[314407123,1708297840041,-184.05,0.00037572,2]
[314407124,1708297840050,-526.43106906,0.00037594,4]
[314407125,1708297840059,-2000.0,0.00037595,2]
[314407126,1708297840069,-200.0,0.00037595,2]
[314407127,1708297840078,-4000.0,0.00037595,2]
[314407128,1708297840089,-26775.7087982,0.00037626,2]
[314407129,1708297840098,-259088.1996983,0.00037626,2]
[314407130,1708297840108,-180.0,0.00037671,2]
[314407131,1708297840118,-221.51,0.00037699,2]
[314407132,1708297840127,-5000.0,0.000377,3]
[314407133,1708297840136,-151.0,0.0003777,2]
[314407134,1708297840146,-624.49,0.00037799,2]
[314407135,1708297840155,-317.03650785,0.00037799,2]
[314407136,1708297840165,-1013.64830066,0.000378,11]
[314407137,1708297840175,-50445.16848595,0.000378,3]
[314407138,1708297840185,-150.1,0.000378,4]
[314407139,1708297840194,-233.47,0.000378,2]
[314407140,1708297840204,-152.7176105,0.00037801,2]
[314407141,1708297840213,-1556.99994891,0.00037806,2]
[314407142,1708297840222,-338.66472884,0.00037806,4]
[314407143,1708297840231,-666.47,0.00037829,2]
[314407144,1708297840241,-204.72096676,0.00037832,2]
[314407145,1708297840250,-499.27857424,0.00037835,2]
[314407146,1708297840259,-158.77110127,0.00037835,2]
[314407147,1708297840269,-208.81089753,0.00037856,7]
[314407148,1708297840278,-1404.73789058,0.00037856,2]
[314407149,1708297840287,-221.51,0.00037886,2]
[314407150,1708297840296,-1397.72443586,0.00037891,8]
[314407151,1708297840305,-292.8288571,0.00037891,8]
[314407152,1708297840315,-643.12878312,0.00037891,8]
[314407153,1708297840324,-153.98088598,0.00037891,8]
[314407154,1708297840335,-1000.0,0.00037891,10]
[314407155,1708297840344,-353.64349233,0.00037891,8]
[314407156,1708297840353,-1000.0,0.00037891,10]
[314407157,1708297840363,-1000.0,0.00037891,10]
[314407158,1708297840372,-1000.0,0.00037891,10]
[314407159,1708297840381,-1000.0,0.00037891,10]
[314407160,1708297840391,-1396.35,0.00037898,2]
[314407161,1708297840400,-1706.65,0.00037898,2]
[314407162,1708297840410,-52308.94,0.00037899,7]
[314407163,1708297840419,-1533.44630829,0.00037899,2]
[314407164,1708297840428,-1079.98859722,0.00037899,2]
[314407165,1708297840437,-72414.25970893,0.00037899,2]
[314407166,1708297840446,-553.21,0.00037899,2]
[314407167,1708297840456,-553.21,0.00037899,2]
[314407168,1708297840465,-553.21,0.00037899,2]
[314407170,1708297840475,-553.21,0.00037899,2]
[314407172,1708297840484,-575.2,0.00037899,2]
[314407173,1708297840494,-575.2,0.00037899,2]
[314407174,1708297840506,-575.2,0.00037899,2]
[314407175,1708297840516,-575.2,0.00037899,2]
[314407176,1708297840526,-624.49,0.00037899,2]
[314407177,1708297840536,-624.49,0.00037899,2]
[314407178,1708297840546,-624.49,0.00037899,2]
[314407179,1708297840556,-977.4,0.00037899,2]
[314407180,1708297840565,-977.4,0.00037899,2]
[314407181,1708297840575,-977.4,0.00037899,2]
[314407182,1708297840585,-977.4,0.00037899,2]
[314407183,1708297840595,-630750.56760481,0.000379,3]
[314407184,1708297840613,-26050.06792519,0.000379,3]
[314407185,1708297840623,-1689.51734807,0.00037932,2]
[314407186,1708297840633,-154.0,0.00037956,7]
[314407187,1708297840643,-2000.0,0.00037971,2]
[314407188,1708297840653,-200.0,0.00037971,2]
[314407189,1708297840663,-479.41,0.0003798,2]
[314407190,1708297840673,-624.49,0.00037999,2]
[314407191,1708297840682,-155.0,0.00038,4]
[314407192,1708297840693,-900.000002,0.00038,39]
[314407193,1708297840704,-12587.00738604,0.00038,2]
[314407194,1708297840714,-283.34,0.00038,2]
[314407195,1708297840724,-2438.95463491,0.00038,2]
[314407196,1708297840734,-2438.95463491,0.00038,2]
[314407197,1708297840744,-2438.95463491,0.00038,2]
[314407198,1708297840756,-2438.95463491,0.00038,2]
[314407199,1708297840765,-2438.95463491,0.00038,2]
[314407200,1708297840776,-2438.95463491,0.00038,2]
[314407201,1708297840787,-2438.95463491,0.00038,2]
[314407202,1708297840797,-2438.95463491,0.00038,2]
[314407203,1708297840807,-2438.95463491,0.00038,2]
[314407204,1708297840817,-2438.95463491,0.00038,2]
[314407205,1708297840830,-2438.95463491,0.00038,2]
[314407206,1708297840840,-2438.95463491,0.00038,2]
[314407207,1708297840849,-2438.95463491,0.00038,2]
[314407208,1708297840860,-2438.95463491,0.00038,2]
[314407209,1708297840870,-2438.95463491,0.00038,2]
[314407210,1708297840879,-2438.95463491,0.00038,2]
[314407211,1708297840889,-2438.95463491,0.00038,2]
[314407212,1708297840901,-2438.95463491,0.00038,2]
[314407213,1708297840910,-2435.57716403,0.00038,2]
[314407214,1708297840933,-3.37747088,0.00038,2]
[314407215,1708297840942,-501.70252912,0.00038,2]
[314407216,1708297840954,-273.00145946,0.00038,2]
[314407217,1708297840966,-1664.25064633,0.00038,2]
[314407218,1708297840975,-2438.95463491,0.00038,2]
[314407219,1708297840985,-2438.95463491,0.00038,2]
[314407220,1708297840995,-2438.95463491,0.00038,2]
[314407221,1708297841004,-2438.95463491,0.00038,2]
[314407222,1708297841014,-2438.95463491,0.00038,2]
[314407223,1708297841024,-2438.95463491,0.00038,2]
[314407224,1708297841033,-2438.95463491,0.00038,2]
[314407225,1708297841046,-1171.28913489,0.00038,2]
[314407226,1708297841058,-397.86579353,0.00038,2]
[314407227,1708297841457,-410.40491062,0.00038,2]
[314407228,1708297841469,-459.39479587,0.00038,2]
[314407229,1708297841478,-320.25520413,0.00038,2]
[314407230,1708297841493,-1306.315,0.00038,2]
[314407231,1708297841504,-395.85130589,0.00038,2]
[314407232,1708297841517,-416.53312489,0.00038,2]
[314407233,1708297841527,-1802.64343651,0.00038,2]
[314407234,1708297841538,-636.3111984,0.00038,2]
[314407235,1708297841548,-32.9978598,0.00038,2]
[314407236,1708297841563,-1241.01269705,0.00038,2]
[314407237,1708297841575,-1164.94407806,0.00038,2]
[314407239,1708297841585,-2438.95463491,0.00038,2]
[314407240,1708297841594,-2438.95463491,0.00038,2]
[314407241,1708297841603,-2438.95463491,0.00038,2]
[314407242,1708297841612,-2438.95463491,0.00038,2]
[314407243,1708297841622,-2438.95463491,0.00038,2]
[314407244,1708297841631,-2438.95463491,0.00038,2]
[314407245,1708297841640,-2438.95463491,0.00038,2]
[314407246,1708297841649,-348.97611672,0.00038,2]
[314407247,1708297841660,-2089.97851819,0.00038,2]
[314407248,1708297841670,-2438.95463491,0.00038,2]
[314407249,1708297841679,-2438.95463491,0.00038,2]
[314407250,1708297841689,-2438.95463491,0.00038,2]
[314407251,1708297841698,-2438.95463491,0.00038,2]
[314407252,1708297841707,-2438.95463491,0.00038,2]
[314407253,1708297841716,-2438.95463491,0.00038,2]
[314407254,1708297841726,-2438.95463491,0.00038,2]
[314407255,1708297841735,-2438.95463491,0.00038,2]
[314407256,1708297841744,-2438.95463491,0.00038,2]
[314407257,1708297841754,-2438.95463491,0.00038,2]
[314407258,1708297841763,-2438.95463491,0.00038,2]
[314407259,1708297841773,-2438.95463491,0.00038,2]
[314407260,1708297841782,-1208.83954737,0.00038,2]
[314407267,1708297842910,-1230.11508754,0.00038,2]
[314407269,1708297842919,-2438.95463491,0.00038,2]
[314407271,1708297842929,-2438.95463491,0.00038,2]
[314407273,1708297842938,-2438.95463491,0.00038,2]
[314407275,1708297842947,-2438.95463491,0.00038,2]
[314407277,1708297842957,-2438.95463491,0.00038,2]
[314407279,1708297842966,-2438.95463491,0.00038,2]
[314407281,1708297842976,-2438.95463491,0.00038,2]
[314407283,1708297842986,-2438.95463491,0.00038,2]
[314407285,1708297842996,-2438.95463491,0.00038,2]
[314407287,1708297843005,-2438.95463491,0.00038,2]
[314407289,1708297843015,-2438.95463491,0.00038,2]
[314407291,1708297843025,-2438.95463491,0.00038,2]
[314407293,1708297843035,-2438.95463491,0.00038,2]
[314407295,1708297843045,-2438.95463491,0.00038,2]
[314407297,1708297843054,-2438.95463491,0.00038,2]
[314407299,1708297843064,-2438.95463491,0.00038,2]
[314407301,1708297843074,-2438.95463491,0.00038,2]
[314407303,1708297843084,-2438.95463491,0.00038,2]
[314407305,1708297843094,-2438.95463491,0.00038,2]
[314407307,1708297843103,-2438.95463491,0.00038,2]
[314407309,1708297843113,-2438.95463491,0.00038,2]
[314407310,1708297843122,-2438.95463491,0.00038,2]
[314407311,1708297843131,-2438.95463491,0.00038,2]
[314407312,1708297843140,-2438.95463491,0.00038,2]
[314407313,1708297843149,-2438.95463491,0.00038,2]
[314407315,1708297843158,-2438.95463491,0.00038,2]
[314407317,1708297843167,-2438.95463491,0.00038,2]
[314407319,1708297843176,-2438.95463491,0.00038,2]
[314407321,1708297843185,-2438.95463491,0.00038,2]
[314407323,1708297843194,-2438.95463491,0.00038,2]
[314407325,1708297843203,-2438.95463491,0.00038,2]
[314407326,1708297843213,-2438.95463491,0.00038,2]
[314407327,1708297843222,-2438.95463491,0.00038,2]
[314407328,1708297843231,-2438.95463491,0.00038,2]
[314407329,1708297843240,-2039.19596387,0.00038,2]
[314407330,1708297843255,-399.75867104,0.00038,2]
[314407331,1708297843265,-2438.95463491,0.00038,2]
[314407333,1708297843274,-2266.60763668,0.00038,2]
[314407336,1708297843288,-172.34699823,0.00038,2]
[314407337,1708297843297,-2023.44942761,0.00038,2]
[314407339,1708297843332,-415.5052073,0.00038,2]
[314407341,1708297843341,-2438.95463491,0.00038,2]
[314407343,1708297843350,-2438.95463491,0.00038,2]
[314407345,1708297843360,-2438.95463491,0.00038,2]
[314407347,1708297843369,-2438.95463491,0.00038,2]
[314407349,1708297843378,-2438.95463491,0.00038,2]
[314407351,1708297843388,-2438.95463491,0.00038,2]
[314407353,1708297843397,-2438.95463491,0.00038,2]
[314407355,1708297843406,-2438.95463491,0.00038,2]
[314407357,1708297843415,-2438.95463491,0.00038,2]
[314407359,1708297843424,-2438.95463491,0.00038,2]
[314407361,1708297843433,-1013.64830056,0.00038033,11]
[314407363,1708297843442,-221.51,0.00038074,2]
[314407365,1708297843451,-620.44,0.00038117,2]
[314407367,1708297843460,-231.693,0.00038157,2]
[314407369,1708297843469,-235.515,0.00038157,2]
[314407371,1708297843479,-250.0,0.00038157,2]
[314407373,1708297843488,-158.0,0.00038157,2]
[314407375,1708297843497,-202.0,0.00038157,2]
[314407377,1708297843506,-155.0,0.00038157,2]
[314407379,1708297843515,-158.734,0.00038157,2]
[314407381,1708297843524,-151.887,0.00038157,2]
[314407383,1708297843533,-245.892,0.00038157,2]
[314407385,1708297843543,-150.0,0.00038157,2]
[314407387,1708297843552,-200.0,0.00038157,2]
[314407389,1708297843561,-152.705,0.00038157,2]
[314407391,1708297843570,-155.778,0.00038157,2]
[314407393,1708297843579,-226.244,0.00038157,2]
[314407396,1708297843599,-151.915,0.00038157,2]
[314407398,1708297843609,-523.773,0.00038157,2]
[314407400,1708297843623,-1866.0,0.00038157,2]
[314407402,1708297843632,-2691.0,0.00038157,2]
[314407404,1708297843641,-440.645,0.00038157,2]
[314407406,1708297843650,-708.883,0.00038157,2]
[314407408,1708297843659,-158.363,0.00038157,2]
[314407410,1708297843670,-953.0,0.00038157,2]
[314407412,1708297843680,-842.0,0.00038157,2]
[314407414,1708297843689,-196.839,0.00038157,2]
[314407416,1708297843698,-1231.0,0.00038157,2]
[314407418,1708297843707,-1255.0,0.00038157,2]
[314407420,1708297843716,-1948.0,0.00038157,2]
[314407422,1708297843725,-216.0,0.00038157,2]
[314407424,1708297843734,-1005.0,0.00038157,2]
[314407426,1708297843743,-858.0,0.00038157,2]
[314407428,1708297843752,-276.0,0.00038157,2]
[314407430,1708297843763,-429.0,0.00038157,2]
[314407432,1708297843772,-1138.0,0.00038157,2]
[314407434,1708297843781,-2886.0,0.00038157,2]
[314407436,1708297843790,-150.0,0.00038157,2]
[314407438,1708297843800,-343.0,0.00038157,2]
[314407440,1708297843810,-321.0,0.00038157,2]
[314407442,1708297843819,-305.623,0.00038157,2]
[314407443,1708297843830,-454.0,0.00038157,2]
[314407445,1708297843839,-624.49,0.00038205,2]
[314407447,1708297843849,-2328.14344635,0.00038206,14]
[314407448,1708297843859,-14530.18079705,0.00038206,14]
[314407449,1708297843868,-726.50903985,0.00038206,11]
[314407450,1708297843878,-2219.97769161,0.00038206,13]
[314407451,1708297843887,-2426.28026624,0.00038206,14]
[314407452,1708297843896,-645.14628874,0.00038206,13]
[314407453,1708297843906,-221.51,0.00038262,2]
[314407454,1708297843916,-1013.64830056,0.00038266,11]
[314407455,1708297843925,-2000.0,0.00038351,2]
[314407456,1708297843935,-200.0,0.00038351,2]
[314407457,1708297843944,-762.18,0.00038352,2]
[314407459,1708297843954,-250.0,0.00038356,2]
[314407461,1708297843963,-743.35,0.00038356,15]
[314407463,1708297843975,-150.0,0.00038356,2]
[314407465,1708297843985,-329.48,0.00038356,2]
[314407467,1708297843994,-1500.0,0.000384,2]
[314407469,1708297844004,-991.55821712,0.000384,2]
[314407471,1708297844014,-221.51,0.00038449,2]
[314407473,1708297844024,-1013.64830056,0.00038499,12]
[314407475,1708297844033,-5000.0,0.000385,7]
[314407477,1708297844043,-154.0,0.00038504,7]
[314407479,1708297844054,-161.77,0.0003863,2]
[314407481,1708297844064,-221.51,0.00038637,2]
[314407483,1708297844074,-800.0,0.00038638,5]
[314407485,1708297844083,-200.0,0.00038638,20]
[314407487,1708297844093,-200.0,0.00038638,20]
[314407489,1708297844103,-20000.0,0.00038727,2]
[314407491,1708297844112,-1013.64830056,0.00038732,12]
[314407493,1708297844122,-2000.0,0.00038734,2]
[314407495,1708297844132,-200.0,0.00038734,2]
[314407497,1708297844142,-2516.01197188,0.0003874,2]
[314407499,1708297844151,-1519.33597542,0.0003874,2]
[314407501,1708297844161,-221.51,0.00038824,2]
[314407503,1708297844170,-553.21,0.00038899,2]
[314407505,1708297844180,-553.21,0.00038899,2]
[314407507,1708297844189,-575.2,0.00038899,2]
[314407509,1708297844199,-575.2,0.00038899,2]
[314407512,1708297844208,-624.49,0.00038899,2]
[314407515,1708297844228,-977.4,0.00038899,2]
[314407517,1708297844238,-150.0,0.00038899,2]
[314407519,1708297844248,-977.4,0.00038899,2]
[314407521,1708297844258,-150.0,0.00038899,2]
[314407523,1708297844267,-5962.50385511,0.000389,3]
[314407525,1708297844276,-251811.77939621,0.000389,2]
[314407527,1708297844286,-181.804306,0.000389,2]
[314407529,1708297844296,-500.0,0.00038904,2]
[314407531,1708297844306,-1000.0,0.00038953,2]
[314407533,1708297844315,-1013.64830056,0.00038965,12]
[314407535,1708297844324,-5000.0,0.00038986,2]
[314407537,1708297844334,-5000.0,0.00038986,2]
[314407539,1708297844343,-5000.0,0.00038986,2]
[314407541,1708297844353,-5000.0,0.00038986,2]
[314407543,1708297844362,-12424.0,0.00039,2]
[314407545,1708297844371,-150.0,0.00039,2]
[314407547,1708297844381,-80066.2387,0.00039,2]
[314407549,1708297844390,-711.53252592,0.00039,2]
[314407551,1708297844399,-221.51,0.00039012,2]
[314407553,1708297844409,-154.0,0.00039052,7]
[314407555,1708297844419,-152.7176105,0.00039064,3]
[314407565,1708297844493,-499.27857424,0.00039072,2]
[314407567,1708297844502,-1404.73789058,0.00039082,2]
[314407569,1708297844511,-1013.64830056,0.00039199,12]
[314407571,1708297844520,-221.51,0.00039199,2]
[314407573,1708297844529,-1000.0,0.0003926,2]
[314407575,1708297844538,-150.1,0.00039272,2]
[314407577,1708297844547,-150.0,0.00039366,2]
[314407579,1708297844556,-150.0,0.00039392,2]
[314407581,1708297844565,-515.97006644,0.00039408,11]
[314407583,1708297844574,-350.0,0.00039431,2]
[314407585,1708297844583,-500.0,0.00039431,2]
[314407587,1708297844593,-500.0,0.00039431,2]
[314407589,1708297844602,-500.0,0.00039431,2]
[314407591,1708297844611,-500.0,0.00039431,2]
[314407593,1708297844620,-500.0,0.00039431,2]
[314407595,1708297844632,-500.0,0.00039431,2]
[314407597,1708297844641,-500.0,0.00039431,2]
[314407599,1708297844652,-500.0,0.00039431,2]
[314407601,1708297844662,-500.0,0.00039431,2]
[314407603,1708297844671,-500.0,0.00039431,2]
[314407605,1708297844681,-500.0,0.00039431,2]
[314407607,1708297844690,-500.0,0.00039431,2]
[314407609,1708297844700,-500.0,0.00039431,2]
[314407611,1708297844710,-500.0,0.00039431,2]
[314407613,1708297844719,-500.0,0.00039431,2]
[314407615,1708297844728,-500.0,0.00039431,2]
[314407617,1708297844738,-500.0,0.00039431,2]
[314407619,1708297844747,-500.0,0.00039431,2]
[314407621,1708297844756,-500.0,0.00039431,2]
[314407623,1708297844765,-500.0,0.00039431,2]
[314407625,1708297844775,-500.0,0.00039431,2]
[314407627,1708297844784,-500.0,0.00039431,2]
[314407629,1708297844793,-500.0,0.00039431,2]
[314407631,1708297844803,-500.0,0.00039431,2]
[314407634,1708297844816,-500.0,0.00039431,2]
[314407636,1708297844826,-500.0,0.00039431,2]
[314407638,1708297844835,-500.0,0.00039431,2]
[314407640,1708297844845,-500.0,0.00039431,2]
[314407642,1708297844856,-500.0,0.00039431,2]
[314407644,1708297844865,-500.0,0.00039431,2]
[314407646,1708297844874,-500.0,0.00039431,2]
[314407648,1708297844883,-500.0,0.00039431,2]
[314407650,1708297844892,-500.0,0.00039431,2]
[314407652,1708297844902,-500.0,0.00039431,2]
[314407654,1708297844914,-500.0,0.00039431,2]
[314407656,1708297844924,-500.0,0.00039431,2]
[314407658,1708297844933,-500.0,0.00039431,2]
[314407660,1708297844942,-500.0,0.00039431,2]
[314407662,1708297844951,-500.0,0.00039431,2]
[314407664,1708297844960,-1013.64830056,0.00039432,13]
[314407666,1708297844969,-750.0,0.00039452,2]
[314407668,1708297844979,-666.47,0.00039473,2]
[314407670,1708297844988,-155.88,0.00039477,2]
[314407672,1708297844997,-379.56,0.00039491,2]
[314407674,1708297845006,-331.4831351,0.000395,2]
[314407676,1708297845015,-331.48313509,0.000395,2]
[314407678,1708297845024,-331.48313509,0.000395,2]
[314407680,1708297845034,-1689.51734807,0.00039511,2]
[314407682,1708297845044,-5000.0,0.0003958,2]
[314407684,1708297845053,-624.49,0.00039595,2]
[314407687,1708297845063,-152.87813405,0.00039599,2]
[314407689,1708297845074,-154.0,0.000396,7]
[314407691,1708297845083,-152.47,0.000396,3]
[314407693,1708297845093,-152.47,0.000396,3]
[314407695,1708297845103,-152.47,0.000396,3]
[314407697,1708297845112,-152.47,0.000396,3]
[314407699,1708297845122,-152.47,0.000396,3]
[314407700,1708297845134,-152.47,0.000396,3]
[314407703,1708297845152,-152.47,0.000396,3]